[Event "Titled Tuesday Blitz August 17 2021"]
[White "Yoo, Christopher Woojin"]
[Black "Paravyan, David"]
[WhiteFideId "30909694"]
[BlackFideId "4194985"]
[WhiteElo "2105"]
[BlackElo "2562"]
[Result "1-0"]
[Round "07"]
[TimeControl "180+1"]
[Date "2021.08.17"]
[WhiteClock "0:00:05"]
[BlackClock "0:00:02"]

1. e4 {[%clk 0:03:00]}  e5 {[%clk 0:02:59]} 2. Nf3 {[%clk 0:03:00]}  Nc6 {[%clk 0:02:59]} 3. Bc4 {[%clk 0:03:00]}  Nf6 {[%clk 0:02:59]} 4. Ng5 {[%clk 0:03:01]}  d5 {[%clk 0:02:57]} 5. exd5 {[%clk 0:03:01]}  Na5 {[%clk 0:02:57]} 6. Bb5+ {[%clk 0:03:01]}  c6 {[%clk 0:02:58]} 7. dxc6 {[%clk 0:03:01]}  bxc6 {[%clk 0:02:59]} 8. Bd3 {[%clk 0:03:01]}  Nd5 {[%clk 0:02:57]} 9. h4 {[%clk 0:03:01]}  Nf4 {[%clk 0:02:41]} 10. Bf1 {[%clk 0:02:59]}  f6 {[%clk 0:02:26]} 11. Ne4 {[%clk 0:02:54]}  f5 {[%clk 0:02:23]} 12. g3 {[%clk 0:02:53]}  Ne6 {[%clk 0:02:02]} 13. Nec3 {[%clk 0:02:50]}  Bc5 {[%clk 0:02:00]} 14. Bg2 {[%clk 0:02:48]}  O-O {[%clk 0:01:54]} 15. d3 {[%clk 0:02:39]}  f4 {[%clk 0:01:44]} 16. Ne4 {[%clk 0:02:39]}  fxg3 {[%clk 0:01:45]} 17. fxg3 {[%clk 0:02:39]}  Bb6 {[%clk 0:01:42]} 18. Nbc3 {[%clk 0:02:31]}  Nd4 {[%clk 0:01:40]} 19. Bg5 {[%clk 0:02:27]}  Qe8 {[%clk 0:01:39]} 20. Nd6 {[%clk 0:02:01]}  Qe6 {[%clk 0:01:13]} 21. Nxc8 {[%clk 0:02:00]}  Raxc8 {[%clk 0:01:14]} 22. Ne4 {[%clk 0:01:50]}  h6 {[%clk 0:01:08]} 23. Bd2 {[%clk 0:01:50]}  Rcd8 {[%clk 0:00:47]} 24. c3 {[%clk 0:01:00]}  Nf5 {[%clk 0:00:46]} 25. b4 {[%clk 0:00:50]}  Nc4 {[%clk 0:00:06]} 26. Qb3 {[%clk 0:00:20]}  Rxd3 {[%clk 0:00:05]} 27. Bf1 {[%clk 0:00:21]}  Qd5 {[%clk 0:00:02]} 28. Bxd3 {[%clk 0:00:19]}  Qxd3 {[%clk 0:00:03]} 29. Qb1 {[%clk 0:00:17]}  Qf3 {[%clk 0:00:03]} 30. Rf1 {[%clk 0:00:16]}  Qg2 {[%clk 0:00:03]} 31. Qd3 {[%clk 0:00:14]}  Nb2 {[%clk 0:00:02]} 32. Qf3 {[%clk 0:00:11]}  Qh3 {[%clk 0:00:02]} 33. Rh1 {[%clk 0:00:09]}  Qxh1+ {[%clk 0:00:01]} 34. Qxh1 {[%clk 0:00:09]}  Nc4 {[%clk 0:00:02]} 35. Ke2 {[%clk 0:00:09]}  Nfd6 {[%clk 0:00:01]} 36. Rf1 {[%clk 0:00:07]}  Rd8 {[%clk 0:00:01]} 37. Nxd6 {[%clk 0:00:05]}  Rxd6 {[%clk 0:00:02]} 38. Bc1 {[%clk 0:00:05]}  e4 {[%clk 0:00:02]} 39. Qxe4 {[%clk 0:00:05]} 1-0


[Site "https://www.chess.com"]

[Event "Titled Tuesday Blitz August 17 2021"]
[White "Zhigalko, Sergei"]
[Black "Timofeev, Artyom"]
[WhiteFideId "13502956"]
[BlackFideId "4140419"]
[WhiteElo "2662"]
[BlackElo "2582"]
[Result "1/2-1/2"]
[Round "07"]
[TimeControl "180+1"]
[Date "2021.08.17"]
[WhiteClock "0:00:04"]
[BlackClock "0:00:10"]

1. e4 {[%clk 0:03:00]}  c5 {[%clk 0:02:59]} 2. Nf3 {[%clk 0:03:01]}  Nc6 {[%clk 0:02:59]} 3. c3 {[%clk 0:03:01]}  d5 {[%clk 0:02:58]} 4. exd5 {[%clk 0:03:01]}  Qxd5 {[%clk 0:02:58]} 5. d4 {[%clk 0:03:02]}  Bf5 {[%clk 0:02:58]} 6. Be3 {[%clk 0:03:02]}  e6 {[%clk 0:02:57]} 7. Nbd2 {[%clk 0:02:44]}  cxd4 {[%clk 0:02:52]} 8. Nxd4 {[%clk 0:02:43]}  Nxd4 {[%clk 0:02:49]} 9. Bxd4 {[%clk 0:02:41]}  Ne7 {[%clk 0:02:49]} 10. Be2 {[%clk 0:02:31]}  Nc6 {[%clk 0:02:48]} 11. Bf3 {[%clk 0:02:29]}  Qd7 {[%clk 0:02:48]} 12. Nb3 {[%clk 0:02:14]}  O-O-O {[%clk 0:02:33]} 13. O-O {[%clk 0:02:05]}  Qc7 {[%clk 0:02:28]} 14. Qe2 {[%clk 0:02:02]}  Bd6 {[%clk 0:02:24]} 15. Bxc6 {[%clk 0:01:25]}  Qxc6 {[%clk 0:01:54]} 16. Rfd1 {[%clk 0:01:24]}  Qc7 {[%clk 0:01:44]} 17. h3 {[%clk 0:01:19]}  a6 {[%clk 0:01:44]} 18. g4 {[%clk 0:00:48]}  Bg6 {[%clk 0:01:43]} 19. Bxg7 {[%clk 0:00:48]}  Rhe8 {[%clk 0:01:14]} 20. Rd4 {[%clk 0:00:40]}  Bh2+ {[%clk 0:01:09]} 21. Kg2 {[%clk 0:00:38]}  Rxd4 {[%clk 0:01:08]} 22. Bxd4 {[%clk 0:00:35]}  h5 {[%clk 0:01:03]} 23. Rd1 {[%clk 0:00:18]}  hxg4 {[%clk 0:01:02]} 24. hxg4 {[%clk 0:00:19]}  Bd6 {[%clk 0:01:00]} 25. Nd2 {[%clk 0:00:14]}  Rg8 {[%clk 0:00:46]} 26. Nc4 {[%clk 0:00:08]}  Qc6+ {[%clk 0:00:46]} 27. f3 {[%clk 0:00:07]}  Bc7 {[%clk 0:00:36]} 28. Kf2 {[%clk 0:00:05]}  Qb5 {[%clk 0:00:28]} 29. Ne5 {[%clk 0:00:04]}  Qa5 {[%clk 0:00:23]} 30. b4 {[%clk 0:00:03]}  Qd5 {[%clk 0:00:21]} 31. Nxg6 {[%clk 0:00:02]}  Rxg6 {[%clk 0:00:21]} 32. c4 {[%clk 0:00:03]}  Qc6 {[%clk 0:00:20]} 33. b5 {[%clk 0:00:03]}  Qd6 {[%clk 0:00:16]} 34. bxa6 {[%clk 0:00:03]}  Qxa6 {[%clk 0:00:15]} 35. c5 {[%clk 0:00:03]}  Qc6 {[%clk 0:00:15]} 36. Qe4 {[%clk 0:00:02]}  Qxe4 {[%clk 0:00:14]} 37. fxe4 {[%clk 0:00:03]}  Rxg4 {[%clk 0:00:15]} 38. Kf3 {[%clk 0:00:01]}  Rg3+ {[%clk 0:00:15]} 39. Kf2 {[%clk 0:00:02]}  Ra3 {[%clk 0:00:16]} 40. Rd2 {[%clk 0:00:02]}  Ra4 {[%clk 0:00:14]} 41. Ke3 {[%clk 0:00:01]}  Kd7 {[%clk 0:00:15]} 42. Be5+ {[%clk 0:00:01]}  Kc6 {[%clk 0:00:15]} 43. Bxc7 {[%clk 0:00:02]}  Kxc7 {[%clk 0:00:16]} 44. Rf2 {[%clk 0:00:02]}  Kc6 {[%clk 0:00:11]} 45. Rxf7 {[%clk 0:00:02]}  Rxa2 {[%clk 0:00:11]} 46. Re7 {[%clk 0:00:03]}  Kxc5 {[%clk 0:00:12]} 47. Rxb7 {[%clk 0:00:03]}  Kd6 {[%clk 0:00:12]} 48. Rb6+ {[%clk 0:00:03]}  Ke7 {[%clk 0:00:12]} 49. e5 {[%clk 0:00:03]}  Ra5 {[%clk 0:00:12]} 50. Rb7+ {[%clk 0:00:03]}  Ke8 {[%clk 0:00:12]} 51. Kf4 {[%clk 0:00:03]}  Kf8 {[%clk 0:00:12]} 52. Rc7 {[%clk 0:00:03]}  Ke8 {[%clk 0:00:11]} 53. Rb7 {[%clk 0:00:04]}  Kf8 {[%clk 0:00:12]} 54. Rc7 {[%clk 0:00:04]}  Ke8 {[%clk 0:00:12]} 55. Ke4 {[%clk 0:00:04]}  Kf8 {[%clk 0:00:12]} 56. Kd4 {[%clk 0:00:04]}  Ke8 {[%clk 0:00:12]} 57. Rc5 {[%clk 0:00:04]}  Ra4+ {[%clk 0:00:11]} 58. Rc4 {[%clk 0:00:02]}  Ra5 {[%clk 0:00:11]} 59. Rc7 {[%clk 0:00:01]}  Kd8 {[%clk 0:00:10]} 60. Rc5 {[%clk 0:00:02]}  Ra4+ {[%clk 0:00:10]} 61. Rc4 {[%clk 0:00:03]}  Ra5 {[%clk 0:00:10]} 62. Rc5 {[%clk 0:00:03]}  Ra4+ {[%clk 0:00:10]} 63. Rc4 {[%clk 0:00:03]}  Ra5 {[%clk 0:00:10]} 64. Rc5 {[%clk 0:00:04]} 1/2-1/2


[Site "https://www.chess.com"]

[Event "Titled Tuesday Blitz August 17 2021"]
[White "Agibileg, Uurtsaikh"]
[Black "Murzin, Volodar"]
[WhiteFideId "4901606"]
[BlackFideId "44155573"]
[WhiteElo "2150"]
[BlackElo "2541"]
[Result "0-1"]
[Round "08"]
[TimeControl "180+1"]
[Date "2021.08.17"]
[WhiteClock "0:00:01"]
[BlackClock "0:00:05"]

1. d4 {[%clk 0:03:00]}  d5 {[%clk 0:02:59]} 2. c4 {[%clk 0:03:01]}  c6 {[%clk 0:03:00]} 3. Nf3 {[%clk 0:03:00]}  Nf6 {[%clk 0:02:59]} 4. Nc3 {[%clk 0:03:01]}  a6 {[%clk 0:03:00]} 5. Bf4 {[%clk 0:02:57]}  dxc4 {[%clk 0:02:44]} 6. e4 {[%clk 0:02:57]}  b5 {[%clk 0:02:44]} 7. Qc2 {[%clk 0:02:57]}  Bg4 {[%clk 0:02:39]} 8. Rd1 {[%clk 0:02:53]}  Nbd7 {[%clk 0:02:35]} 9. Be2 {[%clk 0:02:51]}  e6 {[%clk 0:02:32]} 10. O-O {[%clk 0:02:50]}  Bb4 {[%clk 0:01:34]} 11. b3 {[%clk 0:02:40]}  Bxc3 {[%clk 0:01:31]} 12. Qxc3 {[%clk 0:02:38]}  Nxe4 {[%clk 0:01:30]} 13. Qc2 {[%clk 0:02:38]}  Ndf6 {[%clk 0:01:27]} 14. bxc4 {[%clk 0:02:36]}  O-O {[%clk 0:01:27]} 15. h3 {[%clk 0:02:14]}  Bh5 {[%clk 0:01:24]} 16. Ne5 {[%clk 0:02:08]}  Bxe2 {[%clk 0:01:22]} 17. Qxe2 {[%clk 0:02:07]}  Nc3 {[%clk 0:01:23]} 18. Qf3 {[%clk 0:02:01]}  Nxd1 {[%clk 0:01:21]} 19. Rxd1 {[%clk 0:02:02]}  bxc4 {[%clk 0:01:21]} 20. Bg5 {[%clk 0:01:57]}  Qd5 {[%clk 0:01:20]} 21. Qe3 {[%clk 0:01:32]}  Nd7 {[%clk 0:01:13]} 22. Qe2 {[%clk 0:01:19]}  c3 {[%clk 0:01:05]} 23. Bf4 {[%clk 0:00:55]}  Nxe5 {[%clk 0:00:57]} 24. dxe5 {[%clk 0:00:52]}  Qc5 {[%clk 0:00:56]} 25. Rc1 {[%clk 0:00:50]}  Rfd8 {[%clk 0:00:52]} 26. Bg5 {[%clk 0:00:43]}  Rd5 {[%clk 0:00:47]} 27. Qg4 {[%clk 0:00:36]}  Kh8 {[%clk 0:00:45]} 28. Be3 {[%clk 0:00:27]}  Qb5 {[%clk 0:00:32]} 29. Rxc3 {[%clk 0:00:23]}  Rxe5 {[%clk 0:00:30]} 30. Rb3 {[%clk 0:00:22]}  Qd5 {[%clk 0:00:21]} 31. Qf4 {[%clk 0:00:17]}  Rf8 {[%clk 0:00:11]} 32. Bd4 {[%clk 0:00:13]}  Re1+ {[%clk 0:00:10]} 33. Kh2 {[%clk 0:00:14]}  e5 {[%clk 0:00:10]} 34. Qd2 {[%clk 0:00:12]}  Re4 {[%clk 0:00:08]} 35. Qb4 {[%clk 0:00:12]}  Rg8 {[%clk 0:00:07]} 36. Qb8 {[%clk 0:00:10]}  f6 {[%clk 0:00:04]} 37. Qc7 {[%clk 0:00:05]}  Rxd4 {[%clk 0:00:03]} 38. Rb8 {[%clk 0:00:04]}  e4 {[%clk 0:00:03]} 39. Kg3 {[%clk 0:00:02]}  Qd6+ {[%clk 0:00:03]} 40. Qxd6 {[%clk 0:00:02]}  Rxd6 {[%clk 0:00:04]} 41. Rb4 {[%clk 0:00:02]}  Rd3+ {[%clk 0:00:04]} 42. Kf4 {[%clk 0:00:02]}  Re8 {[%clk 0:00:05]} 43. Rb6 {[%clk 0:00:01]}  e3 {[%clk 0:00:05]} 44. Rb8 {[%clk 0:00:01]}  Rxb8 {[%clk 0:00:05]} 0-1


[Site "https://www.chess.com"]

[Event "Titled Tuesday Blitz August 17 2021"]
[White "Babiy, Olga"]
[Black "Maksimovic, Bojan"]
[WhiteFideId "14117258"]
[BlackFideId "14408120"]
[WhiteElo "2253"]
[BlackElo "2439"]
[Result "0-1"]
[Round "08"]
[TimeControl "180+1"]
[Date "2021.08.17"]
[WhiteClock "0:00:03"]
[BlackClock "0:00:07"]

1. d4 {[%clk 0:03:00]}  Nf6 {[%clk 0:03:00]} 2. Nf3 {[%clk 0:03:00]}  Ng8 {[%clk 0:03:01]} 3. e4 {[%clk 0:02:59]}  Nf6 {[%clk 0:03:02]} 4. Nc3 {[%clk 0:02:59]}  Ng8 {[%clk 0:03:02]} 5. Bc4 {[%clk 0:02:58]}  e6 {[%clk 0:03:02]} 6. e5 {[%clk 0:02:57]}  d5 {[%clk 0:03:01]} 7. exd6 {[%clk 0:02:57]}  cxd6 {[%clk 0:03:02]} 8. O-O {[%clk 0:02:55]}  d5 {[%clk 0:03:01]} 9. Bb5+ {[%clk 0:02:55]}  Bd7 {[%clk 0:03:01]} 10. Bd3 {[%clk 0:02:53]}  Nf6 {[%clk 0:03:00]} 11. Ne2 {[%clk 0:02:53]}  Nc6 {[%clk 0:03:00]} 12. c3 {[%clk 0:02:53]}  Bd6 {[%clk 0:02:44]} 13. Bg5 {[%clk 0:02:53]}  Ne7 {[%clk 0:02:34]} 14. Re1 {[%clk 0:02:40]}  Ng6 {[%clk 0:02:33]} 15. Ng3 {[%clk 0:02:28]}  O-O {[%clk 0:02:32]} 16. Nh5 {[%clk 0:02:22]}  Be7 {[%clk 0:02:31]} 17. Nf4 {[%clk 0:02:08]}  Nxf4 {[%clk 0:01:59]} 18. Bxf4 {[%clk 0:02:09]}  Qb6 {[%clk 0:01:57]} 19. Ne5 {[%clk 0:01:47]}  Rfd8 {[%clk 0:01:34]} 20. Re3 {[%clk 0:01:24]}  Be8 {[%clk 0:01:29]} 21. Rg3 {[%clk 0:01:13]}  g6 {[%clk 0:01:29]} 22. Bg5 {[%clk 0:01:10]}  Qc7 {[%clk 0:01:27]} 23. Qf3 {[%clk 0:01:01]}  Ne4 {[%clk 0:01:12]} 24. Bxe7 {[%clk 0:00:42]}  Qxe7 {[%clk 0:01:13]} 25. Bxe4 {[%clk 0:00:42]}  dxe4 {[%clk 0:01:13]} 26. Qxe4 {[%clk 0:00:43]}  f6 {[%clk 0:01:14]} 27. Nd3 {[%clk 0:00:34]}  Bc6 {[%clk 0:01:15]} 28. Qf4 {[%clk 0:00:32]}  e5 {[%clk 0:01:07]} 29. dxe5 {[%clk 0:00:31]}  Rf8 {[%clk 0:00:57]} 30. exf6 {[%clk 0:00:22]}  Rxf6 {[%clk 0:00:57]} 31. Qc4+ {[%clk 0:00:22]}  Kg7 {[%clk 0:00:57]} 32. Re1 {[%clk 0:00:20]}  Qd6 {[%clk 0:00:58]} 33. Rge3 {[%clk 0:00:19]}  Raf8 {[%clk 0:00:47]} 34. Qh4 {[%clk 0:00:19]}  Qd5 {[%clk 0:00:42]} 35. Re7+ {[%clk 0:00:18]}  R8f7 {[%clk 0:00:42]} 36. Rxf7+ {[%clk 0:00:17]}  Rxf7 {[%clk 0:00:43]} 37. Qd4+ {[%clk 0:00:17]}  Qxd4 {[%clk 0:00:43]} 38. cxd4 {[%clk 0:00:18]}  Rd7 {[%clk 0:00:43]} 39. Ne5 {[%clk 0:00:17]}  Rxd4 {[%clk 0:00:43]} 40. Nxc6 {[%clk 0:00:16]}  bxc6 {[%clk 0:00:44]} 41. Kf1 {[%clk 0:00:16]}  Kf6 {[%clk 0:00:44]} 42. Rc1 {[%clk 0:00:16]}  Rd6 {[%clk 0:00:31]} 43. Ke2 {[%clk 0:00:16]}  Ke5 {[%clk 0:00:29]} 44. Rc5+ {[%clk 0:00:16]}  Kd4 {[%clk 0:00:28]} 45. Ra5 {[%clk 0:00:16]}  Rd7 {[%clk 0:00:29]} 46. h4 {[%clk 0:00:16]}  c5 {[%clk 0:00:28]} 47. b3 {[%clk 0:00:16]}  Rc7 {[%clk 0:00:25]} 48. Ra4+ {[%clk 0:00:17]}  Kc3 {[%clk 0:00:17]} 49. Rc4+ {[%clk 0:00:17]}  Kb2 {[%clk 0:00:17]} 50. b4 {[%clk 0:00:17]}  Re7+ {[%clk 0:00:17]} 51. Kd3 {[%clk 0:00:17]}  cxb4 {[%clk 0:00:18]} 52. Rxb4+ {[%clk 0:00:16]}  Kxa2 {[%clk 0:00:18]} 53. g4 {[%clk 0:00:11]}  Ka3 {[%clk 0:00:16]} 54. Rb5 {[%clk 0:00:10]}  Ka4 {[%clk 0:00:16]} 55. Rb1 {[%clk 0:00:11]}  a5 {[%clk 0:00:16]} 56. f4 {[%clk 0:00:11]}  Ka3 {[%clk 0:00:15]} 57. Kc3 {[%clk 0:00:10]}  Re3+ {[%clk 0:00:13]} 58. Kd4 {[%clk 0:00:10]}  Rh3 {[%clk 0:00:12]} 59. f5 {[%clk 0:00:05]}  Rxh4 {[%clk 0:00:08]} 60. Rg1 {[%clk 0:00:04]}  gxf5 {[%clk 0:00:08]} 61. Rg3+ {[%clk 0:00:03]}  Kb4 {[%clk 0:00:07]} 0-1


[Site "https://www.chess.com"]

[Event "Titled Tuesday Blitz August 17 2021"]
[White "Bilan, Danila"]
[Black "Nastore, Pavel-Alexandru"]
[WhiteFideId "24161918"]
[BlackFideId "1255002"]
[WhiteElo "2164"]
[BlackElo "1763"]
[Result "1-0"]
[Round "08"]
[TimeControl "180+1"]
[Date "2021.08.18"]
[WhiteClock "0:00:08"]
[BlackClock "0:00:02"]

1. d4 {[%clk 0:02:58]}  Nf6 {[%clk 0:02:59]} 2. Nf3 {[%clk 0:02:58]}  d5 {[%clk 0:02:58]} 3. c4 {[%clk 0:02:58]}  e6 {[%clk 0:02:54]} 4. Nc3 {[%clk 0:02:55]}  Bb4 {[%clk 0:02:50]} 5. Qc2 {[%clk 0:02:54]}  Ne4 {[%clk 0:02:43]} 6. Bd2 {[%clk 0:02:51]}  Nxd2 {[%clk 0:02:40]} 7. Nxd2 {[%clk 0:02:51]}  O-O {[%clk 0:02:38]} 8. e3 {[%clk 0:02:50]}  c5 {[%clk 0:02:34]} 9. dxc5 {[%clk 0:02:46]}  Bxc5 {[%clk 0:02:30]} 10. cxd5 {[%clk 0:02:43]}  exd5 {[%clk 0:02:25]} 11. Nb3 {[%clk 0:02:43]}  Be7 {[%clk 0:02:22]} 12. Rd1 {[%clk 0:02:42]}  Be6 {[%clk 0:02:20]} 13. Bd3 {[%clk 0:02:37]}  h6 {[%clk 0:02:17]} 14. O-O {[%clk 0:02:27]}  Nc6 {[%clk 0:02:16]} 15. Bf5 {[%clk 0:02:14]}  Qd7 {[%clk 0:02:08]} 16. Bxe6 {[%clk 0:01:59]}  fxe6 {[%clk 0:02:08]} 17. Ne2 {[%clk 0:01:53]}  Rac8 {[%clk 0:02:05]} 18. Qg6 {[%clk 0:01:45]}  Bf6 {[%clk 0:01:56]} 19. Ned4 {[%clk 0:01:36]}  Ne5 {[%clk 0:01:37]} 20. Qh5 {[%clk 0:01:14]}  Nc4 {[%clk 0:01:32]} 21. Qe2 {[%clk 0:01:08]}  a5 {[%clk 0:01:03]} 22. Nc1 {[%clk 0:00:46]}  Rfd8 {[%clk 0:00:45]} 23. b3 {[%clk 0:00:42]}  Nd6 {[%clk 0:00:45]} 24. Nf3 {[%clk 0:00:19]}  Ne4 {[%clk 0:00:42]} 25. Rd3 {[%clk 0:00:15]}  Qb5 {[%clk 0:00:38]} 26. Nd4 {[%clk 0:00:14]}  Qa6 {[%clk 0:00:37]} 27. Qg4 {[%clk 0:00:12]}  Re8 {[%clk 0:00:22]} 28. Rdd1 {[%clk 0:00:12]}  Qd6 {[%clk 0:00:14]} 29. Nce2 {[%clk 0:00:11]}  Qe7 {[%clk 0:00:03]} 30. Rc1 {[%clk 0:00:11]}  Rxc1 {[%clk 0:00:03]} 31. Rxc1 {[%clk 0:00:11]}  Qd7 {[%clk 0:00:04]} 32. g3 {[%clk 0:00:11]}  Kf7 {[%clk 0:00:03]} 33. Nf4 {[%clk 0:00:11]}  Rc8 {[%clk 0:00:03]} 34. Rxc8 {[%clk 0:00:11]}  Qxc8 {[%clk 0:00:03]} 35. Nfxe6 {[%clk 0:00:11]}  Qc1+ {[%clk 0:00:03]} 36. Kg2 {[%clk 0:00:11]}  Qd2 {[%clk 0:00:02]} 37. Qf3 {[%clk 0:00:08]}  Ke7 {[%clk 0:00:02]} 38. Nf4 {[%clk 0:00:08]}  Ng5 {[%clk 0:00:02]} 39. Nxd5+ {[%clk 0:00:07]}  Kf8 {[%clk 0:00:02]} 40. Qf5 {[%clk 0:00:08]} 1-0


[Site "https://www.chess.com"]

[Event "Titled Tuesday Blitz August 17 2021"]
[White "Chernobay, Artem"]
[Black "Terletsky, Oleg"]
[WhiteFideId "4167406"]
[BlackFideId "14116774"]
[WhiteElo "2480"]
[BlackElo "2073"]
[Result "1-0"]
[Round "08"]
[TimeControl "180+1"]
[Date "2021.08.18"]
[WhiteClock "0:00:47"]
[BlackClock "0:00:01"]

1. d4 {[%clk 0:03:00]}  Nf6 {[%clk 0:02:54]} 2. c4 {[%clk 0:02:52]}  g6 {[%clk 0:02:53]} 3. Nc3 {[%clk 0:02:52]}  Bg7 {[%clk 0:02:52]} 4. e4 {[%clk 0:02:53]}  d6 {[%clk 0:02:52]} 5. Nf3 {[%clk 0:02:54]}  O-O {[%clk 0:02:52]} 6. Be2 {[%clk 0:02:54]}  e5 {[%clk 0:02:52]} 7. O-O {[%clk 0:02:54]}  Nc6 {[%clk 0:02:52]} 8. d5 {[%clk 0:02:54]}  Ne7 {[%clk 0:02:52]} 9. Ne1 {[%clk 0:02:55]}  Nd7 {[%clk 0:02:50]} 10. Be3 {[%clk 0:02:56]}  f5 {[%clk 0:02:49]} 11. f3 {[%clk 0:02:56]}  f4 {[%clk 0:02:49]} 12. Bf2 {[%clk 0:02:57]}  g5 {[%clk 0:02:49]} 13. Rc1 {[%clk 0:02:56]}  Ng6 {[%clk 0:02:49]} 14. c5 {[%clk 0:02:56]}  Nxc5 {[%clk 0:02:48]} 15. b4 {[%clk 0:02:54]}  Na6 {[%clk 0:02:48]} 16. Nb5 {[%clk 0:02:54]}  Bd7 {[%clk 0:02:46]} 17. Qb3 {[%clk 0:02:40]}  Qb8 {[%clk 0:02:22]} 18. Rc3 {[%clk 0:02:31]}  Bf6 {[%clk 0:02:10]} 19. Nc2 {[%clk 0:02:29]}  Kh8 {[%clk 0:01:59]} 20. Rc1 {[%clk 0:02:28]}  h5 {[%clk 0:01:57]} 21. h3 {[%clk 0:02:28]}  Rg8 {[%clk 0:01:56]} 22. Ne1 {[%clk 0:02:21]}  c6 {[%clk 0:01:33]} 23. dxc6 {[%clk 0:02:12]}  bxc6 {[%clk 0:01:32]} 24. Qf7 {[%clk 0:02:11]}  Be7 {[%clk 0:00:44]} 25. Nxd6 {[%clk 0:02:09]}  Qxd6 {[%clk 0:00:38]} 26. Rd1 {[%clk 0:02:01]}  Qe6 {[%clk 0:00:28]} 27. Qxe6 {[%clk 0:01:58]}  Bxe6 {[%clk 0:00:29]} 28. Bxa6 {[%clk 0:01:57]}  Bxb4 {[%clk 0:00:20]} 29. Rxc6 {[%clk 0:01:55]}  Bxa2 {[%clk 0:00:20]} 30. Rd7 {[%clk 0:01:34]}  Rg7 {[%clk 0:00:16]} 31. Rxg7 {[%clk 0:01:30]}  Kxg7 {[%clk 0:00:17]} 32. Nd3 {[%clk 0:01:30]}  Be7 {[%clk 0:00:10]} 33. Rc7 {[%clk 0:01:28]}  Kf6 {[%clk 0:00:09]} 34. Bxa7 {[%clk 0:01:22]}  Bb1 {[%clk 0:00:09]} 35. Kf1 {[%clk 0:01:18]}  g4 {[%clk 0:00:05]} 36. hxg4 {[%clk 0:01:14]}  hxg4 {[%clk 0:00:05]} 37. Nf2 {[%clk 0:01:15]}  gxf3 {[%clk 0:00:04]} 38. gxf3 {[%clk 0:01:14]}  Kg5 {[%clk 0:00:03]} 39. Bc4 {[%clk 0:01:06]}  Bf6 {[%clk 0:00:03]} 40. Be6 {[%clk 0:01:00]}  Nh4 {[%clk 0:00:02]} 41. Bg4 {[%clk 0:00:59]}  Rd8 {[%clk 0:00:02]} 42. Rh7 {[%clk 0:00:55]}  Bd3+ {[%clk 0:00:02]} 43. Nxd3 {[%clk 0:00:49]}  Rxd3 {[%clk 0:00:01]} 44. Bf2 {[%clk 0:00:48]}  Rd2 {[%clk 0:00:01]} 45. Bxh4+ {[%clk 0:00:47]} 1-0


[Site "https://www.chess.com"]

[Event "Titled Tuesday Blitz August 17 2021"]
[White "D`Costa, Lorin"]
[Black "Diakonova, Ekaterina"]
[WhiteFideId "409219"]
[BlackFideId "24172936"]
[WhiteElo "2287"]
[BlackElo "2102"]
[Result "1-0"]
[Round "08"]
[TimeControl "180+1"]
[Date "2021.08.18"]
[WhiteClock "0:00:08"]
[BlackClock "0:00:10"]

1. Nf3 {[%clk 0:03:00]}  Nf6 {[%clk 0:02:58]} 2. c4 {[%clk 0:03:01]}  c5 {[%clk 0:02:57]} 3. Nc3 {[%clk 0:03:00]}  b6 {[%clk 0:02:57]} 4. g3 {[%clk 0:02:57]}  Bb7 {[%clk 0:02:57]} 5. Bg2 {[%clk 0:02:57]}  g6 {[%clk 0:02:57]} 6. O-O {[%clk 0:02:57]}  Bg7 {[%clk 0:02:58]} 7. d4 {[%clk 0:02:56]}  cxd4 {[%clk 0:02:57]} 8. Qxd4 {[%clk 0:02:56]}  O-O {[%clk 0:02:56]} 9. Qh4 {[%clk 0:02:55]}  h5 {[%clk 0:02:51]} 10. Rd1 {[%clk 0:02:54]}  d6 {[%clk 0:02:49]} 11. e4 {[%clk 0:02:45]}  Nbd7 {[%clk 0:02:40]} 12. Bg5 {[%clk 0:02:40]}  Qc7 {[%clk 0:02:25]} 13. b3 {[%clk 0:02:38]}  Nc5 {[%clk 0:02:14]} 14. Nd4 {[%clk 0:02:32]}  a6 {[%clk 0:01:58]} 15. Rac1 {[%clk 0:02:32]}  Rfe8 {[%clk 0:01:51]} 16. Nd5 {[%clk 0:02:20]}  Nxd5 {[%clk 0:01:41]} 17. cxd5 {[%clk 0:02:20]}  Qd8 {[%clk 0:01:31]} 18. b4 {[%clk 0:01:46]}  Na4 {[%clk 0:00:51]} 19. Bh3 {[%clk 0:01:31]}  b5 {[%clk 0:00:51]} 20. Nc6 {[%clk 0:01:27]}  Bxc6 {[%clk 0:00:41]} 21. Rxc6 {[%clk 0:01:25]}  Nb6 {[%clk 0:00:40]} 22. Rdc1 {[%clk 0:01:07]}  Nc4 {[%clk 0:00:33]} 23. a4 {[%clk 0:00:54]}  Ne5 {[%clk 0:00:33]} 24. Qf4 {[%clk 0:00:38]}  Nd3 {[%clk 0:00:33]} 25. Qd2 {[%clk 0:00:35]}  Nxc1 {[%clk 0:00:33]} 26. Qxc1 {[%clk 0:00:33]}  bxa4 {[%clk 0:00:33]} 27. Qa3 {[%clk 0:00:33]}  a5 {[%clk 0:00:32]} 28. b5 {[%clk 0:00:32]}  Bc3 {[%clk 0:00:19]} 29. Rxc3 {[%clk 0:00:28]}  f6 {[%clk 0:00:19]} 30. Be6+ {[%clk 0:00:23]}  Kg7 {[%clk 0:00:19]} 31. Be3 {[%clk 0:00:22]}  g5 {[%clk 0:00:18]} 32. Qxa4 {[%clk 0:00:22]}  h4 {[%clk 0:00:18]} 33. g4 {[%clk 0:00:17]}  Qb8 {[%clk 0:00:17]} 34. b6 {[%clk 0:00:17]}  Qb7 {[%clk 0:00:17]} 35. Rc7 {[%clk 0:00:16]}  Qa6 {[%clk 0:00:18]} 36. Kg2 {[%clk 0:00:09]}  Qe2 {[%clk 0:00:17]} 37. h3 {[%clk 0:00:09]}  Ra6 {[%clk 0:00:15]} 38. b7 {[%clk 0:00:09]}  Kg6 {[%clk 0:00:10]} 39. Qxe8+ {[%clk 0:00:08]} 1-0


[Site "https://www.chess.com"]

[Event "Titled Tuesday Blitz August 17 2021"]
[White "De Silva, L M S T"]
[Black "Brunner, Nicolas"]
[WhiteFideId "9953698"]
[BlackFideId "620246"]
[WhiteElo "1621"]
[BlackElo "2372"]
[Result "1-0"]
[Round "08"]
[TimeControl "180+1"]
[Date "2021.08.17"]
[WhiteClock "0:00:11"]
[BlackClock "0:00:02"]

1. e4 {[%clk 0:03:00]}  c5 {[%clk 0:02:56]} 2. Nf3 {[%clk 0:03:00]}  e6 {[%clk 0:02:56]} 3. d4 {[%clk 0:03:00]}  cxd4 {[%clk 0:02:56]} 4. Nxd4 {[%clk 0:03:01]}  Nc6 {[%clk 0:02:57]} 5. Be2 {[%clk 0:03:01]}  a6 {[%clk 0:02:56]} 6. O-O {[%clk 0:03:02]}  Qc7 {[%clk 0:02:56]} 7. Be3 {[%clk 0:03:00]}  Nf6 {[%clk 0:02:55]} 8. Nc3 {[%clk 0:03:01]}  Be7 {[%clk 0:02:54]} 9. a4 {[%clk 0:02:57]}  O-O {[%clk 0:02:53]} 10. f4 {[%clk 0:02:57]}  d6 {[%clk 0:02:53]} 11. Kh1 {[%clk 0:02:56]}  Re8 {[%clk 0:02:52]} 12. Qe1 {[%clk 0:02:56]}  Nxd4 {[%clk 0:02:44]} 13. Bxd4 {[%clk 0:02:56]}  e5 {[%clk 0:02:44]} 14. fxe5 {[%clk 0:02:57]}  dxe5 {[%clk 0:02:43]} 15. Qg3 {[%clk 0:02:57]}  Bd8 {[%clk 0:02:42]} 16. Be3 {[%clk 0:02:27]}  Kh8 {[%clk 0:02:26]} 17. a5 {[%clk 0:02:24]}  Qe7 {[%clk 0:02:19]} 18. Bg5 {[%clk 0:02:11]}  Qc5 {[%clk 0:02:15]} 19. Bxf6 {[%clk 0:02:09]}  Bxf6 {[%clk 0:02:14]} 20. Nd5 {[%clk 0:02:09]}  Qxc2 {[%clk 0:02:04]} 21. Bh5 {[%clk 0:01:52]}  Rf8 {[%clk 0:01:44]} 22. Nxf6 {[%clk 0:01:50]}  gxf6 {[%clk 0:01:44]} 23. Qh4 {[%clk 0:01:51]}  Rg8 {[%clk 0:01:32]} 24. Qxf6+ {[%clk 0:01:48]}  Rg7 {[%clk 0:01:32]} 25. Rf2 {[%clk 0:01:41]}  Qxe4 {[%clk 0:01:31]} 26. Bxf7 {[%clk 0:01:14]}  Bd7 {[%clk 0:00:54]} 27. Bb3 {[%clk 0:00:47]}  Qb4 {[%clk 0:00:24]} 28. Rd1 {[%clk 0:00:32]}  Qxb3 {[%clk 0:00:08]} 29. Rxd7 {[%clk 0:00:31]}  Rg8 {[%clk 0:00:07]} 30. Qxe5 {[%clk 0:00:19]}  Qc4 {[%clk 0:00:06]} 31. h3 {[%clk 0:00:12]}  Qc6 {[%clk 0:00:04]} 32. Rxg7 {[%clk 0:00:11]}  Qc1+ {[%clk 0:00:02]} 33. Kh2 {[%clk 0:00:11]} 1-0


[Site "https://www.chess.com"]